fUSD/lending_fUSD_20250515
["ID","MTS","AMOUNT","RATE_DAILY","PERIOD"]
[361191369,1747329065991,-325.07424662,0.0001182,2]
[361191370,1747329066001,-400.0,0.0001182,2]
[361191371,1747329066011,-400.0,0.0001182,2]
[361191372,1747329066020,-400.0,0.0001182,2]
[361191373,1747329066030,-400.0,0.0001182,2]
[361191374,1747329066039,-400.0,0.0001182,2]
[361191375,1747329066049,-200.0,0.0001182,2]
[361191376,1747329066059,-400.0,0.0001182,2]
[361191377,1747329066068,-462.7,0.0001182,2]
[361191378,1747329066078,-200.0,0.0001182,2]
[361191379,1747329066088,-400.0,0.0001182,2]
[361191380,1747329066097,-400.0,0.0001182,2]
[361191381,1747329066106,-400.0,0.0001182,2]
[361191382,1747329066116,-302.81119852,0.0001182,2]
[361191383,1747329066125,-400.0,0.0001182,2]
[361191384,1747329066134,-240.44,0.0001182,2]
[361191385,1747329066143,-400.0,0.0001182,2]
[361191386,1747329066152,-400.0,0.0001182,2]
[361191387,1747329066162,-400.0,0.0001182,2]
[361191388,1747329066171,-400.0,0.0001182,2]
[361191389,1747329066181,-400.0,0.0001182,2]
[361191390,1747329066191,-400.0,0.0001182,2]
[361191391,1747329066200,-200.0,0.0001182,2]
[361191392,1747329066209,-400.0,0.0001182,2]
[361191393,1747329066218,-200.0,0.0001182,2]
[361191394,1747329066230,-400.0,0.0001182,2]
[361191395,1747329066239,-400.0,0.0001182,2]
[361191396,1747329066249,-400.0,0.0001182,2]
[361191397,1747329066258,-200.0,0.0001182,2]
[361191398,1747329066267,-400.0,0.0001182,2]
[361191399,1747329066277,-400.0,0.0001182,2]
[361191400,1747329066286,-400.0,0.0001182,2]
[361191401,1747329066295,-400.0,0.0001182,2]
[361191402,1747329066304,-400.0,0.0001182,2]
[361191403,1747329066313,-400.0,0.0001182,2]
[361191404,1747329066323,-400.0,0.0001182,2]
[361191405,1747329066332,-400.0,0.0001182,2]
[361191406,1747329066341,-400.0,0.0001182,2]
[361191407,1747329066350,-300.0,0.0001182,2]
[361191408,1747329066359,-400.0,0.0001182,2]
[361191409,1747329066368,-400.0,0.0001182,2]
[361191410,1747329066377,-400.0,0.0001182,2]
[361191411,1747329066387,-400.0,0.0001182,2]
[361191412,1747329066396,-300.0,0.0001182,2]
[361191413,1747329066406,-400.0,0.0001182,2]
[361191414,1747329066419,-3815.63767223,0.00011852,2]
[361191415,1747329066429,-5000.39610306,0.000119,2]
[361191416,1747329066438,-642.02583428,0.00011994,2]
[361191417,1747329066447,-500.0,0.00012,2]
[361191418,1747329066457,-1000.0,0.00012044,2]
[361191419,1747329066467,-420.0,0.00012082,2]
[361191420,1747329066478,-250.0,0.00012088,2]
[361191421,1747329066488,-200.0,0.00012088,2]
[361191422,1747329066499,-500.0,0.00012092,2]
[361191423,1747329066508,-400.0,0.00012092,2]
[361191424,1747329066518,-400.0,0.00012092,2]
[361191425,1747329066528,-186.7,0.00012092,2]
[361191426,1747329066538,-508.85,0.00012092,2]
[361191427,1747329066548,-400.0,0.00012092,2]
[361191428,1747329066557,-400.0,0.00012092,2]
[361191429,1747329066566,-281.36,0.00012092,2]
[361191430,1747329066576,-400.0,0.00012092,2]
[361191431,1747329066585,-400.0,0.00012092,2]
[361191432,1747329066595,-400.0,0.00012092,2]
[361191433,1747329066605,-400.0,0.00012092,2]
[361191434,1747329066615,-400.0,0.00012092,2]
[361191435,1747329066624,-400.0,0.00012092,2]
[361191436,1747329066633,-400.0,0.00012092,2]
[361191437,1747329066643,-479.56,0.00012092,2]
[361191438,1747329066653,-400.0,0.00012092,2]
[361191439,1747329066663,-400.0,0.00012092,2]
[361191440,1747329066672,-436.07,0.00012092,2]
[361191441,1747329066683,-400.0,0.00012092,2]
[361191442,1747329066692,-400.0,0.00012092,2]
[361191443,1747329066702,-400.0,0.00012092,2]
[361191444,1747329066711,-546.94,0.00012092,2]
[361191445,1747329066721,-505.82,0.00012092,2]
[361191446,1747329066732,-400.0,0.00012092,2]
[361191447,1747329066741,-161.168341,0.00012092,2]
[361191448,1747329066751,-251.18259493,0.00012093,2]
[361191449,1747329066760,-200.0,0.00012093,2]
[361191450,1747329066769,-284.5631507,0.00012093,2]
[361191451,1747329066779,-310.01309691,0.00012093,2]
[361191452,1747329066788,-400.0,0.00012093,2]
[361191453,1747329066797,-400.0,0.00012093,2]
[361191454,1747329066807,-400.0,0.00012093,2]
[361191455,1747329066816,-200.0,0.00012093,2]
[361191456,1747329066826,-200.0,0.00012093,2]
[361191457,1747329066835,-300.0,0.00012093,2]
[361191458,1747329066844,-200.0,0.00012093,2]
[361191459,1747329066853,-400.0,0.00012093,2]
[361191460,1747329066863,-400.0,0.00012093,2]
[361191461,1747329066872,-400.0,0.00012093,2]
[361191462,1747329066881,-400.0,0.00012093,2]
[361191463,1747329066890,-400.0,0.00012093,2]
[361191464,1747329066900,-400.0,0.00012093,2]
[361191465,1747329066954,-400.0,0.00012093,2]
[361191466,1747329066963,-425.6,0.00012093,2]
[361191467,1747329066974,-400.0,0.00012093,2]
[361191468,1747329066983,-262.93,0.00012093,2]
[361191469,1747329066992,-400.0,0.00012093,2]
[361191470,1747329067002,-400.0,0.00012093,2]
[361191471,1747329067011,-400.0,0.00012093,2]
[361191472,1747329067020,-300.0,0.00012093,2]
[361191473,1747329067030,-284.33,0.00012093,2]
[361191474,1747329067039,-400.0,0.00012093,2]
[361191475,1747329067048,-400.0,0.00012093,2]
[361191476,1747329067058,-400.0,0.00012093,2]
[361191477,1747329067067,-400.0,0.00012093,2]
[361191478,1747329067078,-200.0,0.00012093,2]
[361191479,1747329067088,-300.0,0.00012093,2]
[361191480,1747329067099,-400.0,0.00012093,2]
[361191481,1747329067108,-300.0,0.00012093,2]
[361191482,1747329067118,-400.0,0.00012093,2]
[361191483,1747329067127,-400.0,0.00012093,2]
[361191484,1747329067136,-400.0,0.00012093,2]
[361191485,1747329067146,-400.0,0.00012093,2]
[361191486,1747329067155,-400.0,0.00012093,2]
[361191487,1747329067164,-300.0,0.00012093,2]
[361191488,1747329067174,-400.0,0.00012093,2]
[361191489,1747329067183,-400.0,0.00012093,2]
[361191490,1747329067192,-400.0,0.00012093,2]
[361191491,1747329067202,-400.0,0.00012093,2]
[361191492,1747329067211,-300.0,0.00012093,2]
[361191493,1747329067221,-300.0,0.00012093,2]
[361191494,1747329067232,-400.0,0.00012093,2]
[361191495,1747329067241,-400.0,0.00012093,2]
[361191496,1747329067250,-400.0,0.00012093,2]
[361191497,1747329067259,-400.0,0.00012093,2]
[361191498,1747329067268,-400.0,0.00012093,2]
[361191499,1747329067278,-400.0,0.00012093,2]
[361191500,1747329067287,-400.0,0.00012093,2]
[361191501,1747329067297,-400.0,0.00012093,2]
[361191502,1747329067306,-400.0,0.00012093,2]
[361191503,1747329067316,-300.0,0.00012093,2]
[361191504,1747329067325,-378.1822118,0.00012093,2]
[361191505,1747329067340,-21.8177882,0.00012093,2]
[361191506,1747329067349,-300.0,0.00012093,2]
[361191507,1747329067358,-219.0827148,0.00012093,2]
[361191508,1747329067367,-400.0,0.00012093,2]
[361191509,1747329067376,-400.0,0.00012093,2]
[361191510,1747329067385,-337.33013277,0.00012093,2]
[361191511,1747329067394,-319.19245018,0.00012093,2]
[361191512,1747329067404,-400.0,0.00012093,2]
[361191513,1747329067417,-400.0,0.00012093,2]
[361191514,1747329067426,-400.0,0.00012093,2]
[361191515,1747329067436,-306.14296315,0.00012093,2]
[361191516,1747329067446,-300.0,0.00012093,2]
[361191517,1747329067455,-400.0,0.00012093,2]
[361191518,1747329067465,-530.73,0.00012093,2]
[361191519,1747329067476,-400.0,0.00012093,2]
[361191520,1747329067486,-400.0,0.00012093,2]
[361191521,1747329067495,-300.0,0.00012093,2]
[361191522,1747329067505,-400.0,0.00012093,2]
[361191523,1747329067518,-502.38,0.00012093,2]
[361191524,1747329067528,-400.0,0.00012093,2]
[361191525,1747329067537,-400.0,0.00012093,2]
[361191526,1747329067547,-400.0,0.00012093,2]
[361191527,1747329067556,-400.0,0.00012093,2]
[361191528,1747329067565,-400.0,0.00012093,2]
[361191529,1747329067574,-400.0,0.00012093,2]
[361191530,1747329067583,-400.0,0.00012093,2]
[361191531,1747329067592,-400.0,0.00012093,2]
[361191532,1747329067602,-400.0,0.00012093,2]
[361191533,1747329067611,-200.0,0.00012093,2]
[361191534,1747329067620,-400.0,0.00012093,2]
[361191535,1747329067629,-300.0,0.00012093,2]
[361191536,1747329067638,-400.0,0.00012093,2]
[361191537,1747329067647,-204.0739696,0.00012093,2]
[361191538,1747329067657,-400.0,0.00012093,2]
[361191539,1747329067666,-400.0,0.00012093,2]
[361191540,1747329067675,-400.0,0.00012093,2]
[361191541,1747329067685,-400.0,0.00012093,2]
[361191542,1747329067694,-400.0,0.00012093,2]
[361191543,1747329067703,-400.0,0.00012093,2]
[361191544,1747329067712,-400.0,0.00012093,2]
[361191545,1747329067721,-400.0,0.00012093,2]
[361191546,1747329067731,-400.0,0.00012093,2]
[361191547,1747329067740,-400.0,0.00012093,2]
[361191548,1747329067750,-400.0,0.00012093,2]
[361191549,1747329067759,-400.0,0.00012093,2]
[361191550,1747329067768,-400.0,0.00012093,2]
[361191551,1747329067779,-400.0,0.00012093,2]
[361191552,1747329067788,-400.0,0.00012093,2]
[361191553,1747329067797,-400.0,0.00012093,2]
[361191554,1747329067807,-529.63197741,0.00012093,2]
[361191555,1747329067817,-400.0,0.00012093,2]
[361191556,1747329067826,-400.0,0.00012093,2]
[361191557,1747329067836,-400.0,0.00012093,2]
[361191558,1747329067844,-400.0,0.00012093,2]
[361191559,1747329067854,-400.0,0.00012093,2]
[361191560,1747329067863,-400.0,0.00012093,2]
[361191561,1747329067872,-400.0,0.00012093,2]
[361191562,1747329067881,-400.0,0.00012093,2]
[361191563,1747329067890,-400.0,0.00012093,2]
[361191564,1747329067899,-400.0,0.00012093,2]
[361191565,1747329067909,-400.0,0.00012093,2]
[361191566,1747329067918,-368.21800389,0.00012093,2]
[361191567,1747329067930,-77.87199611,0.00012093,2]
[361191568,1747329067939,-400.0,0.00012093,2]
[361191569,1747329067947,-254.34234826,0.00012093,2]
[361191570,1747329067957,-400.0,0.00012093,2]
[361191571,1747329067966,-311.25564163,0.00012093,2]
[361191572,1747329067978,-144.55435837,0.00012093,2]
[361191573,1747329067987,-400.0,0.00012093,2]
[361191574,1747329067996,-400.0,0.00012093,2]
[361191575,1747329068006,-400.0,0.00012093,2]
[361191576,1747329068015,-300.0,0.00012093,2]
[361191577,1747329068024,-400.0,0.00012093,2]
[361191578,1747329068033,-400.0,0.00012093,2]
[361191579,1747329068042,-211.85786358,0.00012093,2]
[361191580,1747329068051,-283.32,0.00012093,2]
[361191581,1747329068060,-400.0,0.00012093,2]
[361191582,1747329068069,-400.0,0.00012093,2]
[361191583,1747329068078,-400.0,0.00012093,2]
[361191584,1747329068087,-400.0,0.00012093,2]
[361191585,1747329068095,-212.50145453,0.00012093,2]
[361191586,1747329068104,-400.0,0.00012093,2]
[361191587,1747329068113,-400.0,0.00012093,2]
[361191588,1747329068123,-400.0,0.00012093,2]
[361191589,1747329068132,-400.0,0.00012093,2]
[361191590,1747329068141,-400.0,0.00012093,2]
[361191591,1747329068149,-400.0,0.00012093,2]
[361191592,1747329068158,-400.0,0.00012093,2]
[361191593,1747329068167,-400.0,0.00012093,2]
[361191594,1747329068176,-400.0,0.00012093,2]
[361191595,1747329068185,-400.0,0.00012093,2]
[361191596,1747329068194,-400.0,0.00012093,2]
[361191597,1747329068203,-400.0,0.00012093,2]
[361191598,1747329068213,-400.0,0.00012093,2]
[361191599,1747329068222,-505.50450369,0.00012093,2]
[361191600,1747329068233,-400.0,0.00012093,2]
[361191601,1747329068242,-400.0,0.00012093,2]
[361191602,1747329068251,-400.0,0.00012093,2]
[361191603,1747329068260,-400.0,0.00012093,2]
[361191604,1747329068269,-416.04,0.00012093,2]
[361191605,1747329068278,-400.0,0.00012093,2]
[361191606,1747329068288,-400.0,0.00012093,2]
[361191607,1747329068298,-400.0,0.00012093,2]
[361191608,1747329068307,-400.0,0.00012093,2]
[361191609,1747329068317,-400.0,0.00012093,2]
[361191610,1747329068326,-400.0,0.00012093,2]
[361191611,1747329068336,-1410.03,0.00012093,2]
[361191612,1747329068345,-400.0,0.00012093,2]
[361191613,1747329068354,-400.0,0.00012093,2]
[361191614,1747329068363,-400.0,0.00012093,2]
[361191615,1747329068373,-400.0,0.00012093,2]
[361191616,1747329068382,-400.0,0.00012093,2]
[361191617,1747329068391,-400.0,0.00012093,2]
[361191618,1747329068401,-400.0,0.00012093,2]
[361191619,1747329068415,-400.0,0.00012093,2]
[361191620,1747329068424,-400.0,0.00012093,2]
[361191621,1747329068434,-400.0,0.00012093,2]
[361191622,1747329068443,-400.0,0.00012093,2]
[361191623,1747329068453,-451.32,0.00012093,2]
[361191624,1747329068463,-400.0,0.00012093,2]
[361191625,1747329068472,-400.0,0.00012093,2]
[361191626,1747329068483,-400.0,0.00012093,2]
[361191627,1747329068494,-400.0,0.00012093,2]
[361191628,1747329068504,-400.0,0.00012093,2]
[361191629,1747329068513,-400.0,0.00012093,2]
[361191630,1747329068522,-400.0,0.00012093,2]
[361191631,1747329068531,-400.0,0.00012093,2]
[361191632,1747329068541,-1002.65,0.00012093,2]
[361191633,1747329068550,-400.0,0.00012093,2]
[361191634,1747329068559,-714.19,0.00012093,2]
[361191635,1747329068568,-400.0,0.00012093,2]
[361191636,1747329068577,-400.0,0.00012093,2]
[361191637,1747329068587,-400.0,0.00012093,2]
[361191638,1747329068596,-400.0,0.00012093,2]
[361191639,1747329068606,-459.17,0.00012093,2]
[361191640,1747329068615,-582.15,0.00012093,2]
[361191641,1747329068625,-400.0,0.00012093,2]
[361191642,1747329068635,-89.66981367,0.00012093,2]
[361191643,1747329068871,-204.26915014,0.00010996,2]
[361191644,1747329068880,-400.0,0.00010996,2]
[361191645,1747329068889,-400.0,0.00010997,2]
[361191646,1747329068898,-400.0,0.00010997,2]
[361191647,1747329068907,-14.52743742,0.00010997,2]
[361191648,1747329068963,-385.47256258,0.00010997,2]
[361191649,1747329068973,-508.8754308,0.00010997,2]
[361191650,1747329068983,-400.0,0.0001127,2]
[361191651,1747329068992,-400.0,0.0001127,2]
[361191652,1747329069002,-400.0,0.00011271,2]
[361191653,1747329069011,-400.0,0.00011271,2]
[361191654,1747329069020,-400.0,0.00011271,2]
[361191655,1747329069030,-400.0,0.00011271,2]
[361191656,1747329069039,-183.88,0.00011544,2]
[361191657,1747329069049,-400.0,0.00011544,2]
[361191658,1747329069058,-200.0,0.00011545,2]
[361191659,1747329069067,-400.0,0.00011545,2]
[361191660,1747329069076,-443.44,0.00011545,2]
[361191661,1747329069085,-491.69307273,0.00011545,2]
[361191662,1747329069095,-500.0,0.00011818,2]
[361191663,1747329069104,-300.0,0.00011819,2]
[361191664,1747329069114,-310.33018633,0.00012093,2]
[361191665,1747329069123,-400.0,0.00012093,2]
[361191666,1747329069132,-126.84927175,0.00012093,2]
[361191667,1747329069144,-273.15072825,0.00012093,2]
[361191668,1747329069154,-400.0,0.00012093,2]
[361191669,1747329069163,-400.0,0.00012093,2]
[361191670,1747329069172,-400.0,0.00012093,2]
[361191671,1747329069181,-400.0,0.00012093,2]
[361191672,1747329069191,-400.0,0.00012093,2]
[361191673,1747329069200,-400.0,0.00012093,2]
[361191674,1747329069210,-400.0,0.00012093,2]
[361191675,1747329069220,-400.0,0.00012093,2]
[361191676,1747329069233,-213.96569332,0.00012093,2]
[361191677,1747329069243,-400.0,0.00012093,2]
[361191678,1747329069253,-400.0,0.00012093,2]
[361191679,1747329069263,-266.91243871,0.00012093,2]
[361191680,1747329069275,-133.08756129,0.00012093,2]
[361191681,1747329069285,-400.0,0.00012093,2]
[361191682,1747329069294,-400.0,0.00012093,2]
[361191683,1747329069304,-400.0,0.00012093,2]
[361191684,1747329069315,-400.0,0.00012093,2]
[361191685,1747329069325,-400.0,0.00012093,2]
[361191686,1747329069335,-20.55804366,0.00012093,2]
[361191687,1747329069347,-379.44195634,0.00012093,2]
[361191688,1747329069357,-400.0,0.00012093,2]
[361191689,1747329069367,-522.32,0.00012093,2]
[361191690,1747329069377,-500.0,0.00012093,2]
[361191691,1747329069387,-400.0,0.00012093,2]
[361191692,1747329069397,-400.0,0.00012093,2]
[361191693,1747329069407,-400.0,0.00012093,2]
[361191694,1747329069421,-400.0,0.00012093,2]
[361191695,1747329069431,-243.49376471,0.00012093,2]
[361191696,1747329069448,-156.50623529,0.00012093,2]
[361191697,1747329069459,-400.0,0.00012093,2]
[361191698,1747329069470,-400.0,0.00012093,2]
[361191699,1747329069484,-58.79480085,0.00012093,2]
[361191700,1747329069498,-445.97490586,0.00012093,2]
[361191701,1747329069508,-400.0,0.00012093,2]
[361191702,1747329069518,-400.0,0.00012093,2]
[361191703,1747329069528,-277.95,0.00012093,2]
[361191704,1747329069538,-400.0,0.00012093,2]
[361191705,1747329069548,-500.0,0.00012093,2]
[361191706,1747329069558,-400.0,0.00012093,2]
[361191707,1747329069569,-510.38,0.00012093,2]
[361191708,1747329069580,-395.77156266,0.00012093,2]
[361191709,1747329069591,-400.0,0.00012093,2]
[361191710,1747329069601,-400.0,0.00012093,2]
[361191711,1747329069611,-400.0,0.00012093,2]
[361191712,1747329069621,-400.0,0.00012093,2]
[361191713,1747329069631,-818.48,0.00012093,2]
[361191714,1747329069642,-400.0,0.00012093,2]
[361191715,1747329069652,-500.0,0.00012093,2]
[361191716,1747329069662,-400.0,0.00012093,2]
[361191717,1747329069673,-400.0,0.00012093,2]
[361191718,1747329069683,-400.0,0.00012093,2]
[361191719,1747329069694,-400.0,0.00012093,2]
[361191720,1747329069703,-400.0,0.00012093,2]
[361191721,1747329069714,-400.0,0.00012093,2]
[361191722,1747329069724,-368.97,0.00012093,2]
[361191723,1747329069736,-400.0,0.00012093,2]
[361191724,1747329069746,-400.0,0.00012094,2]
[361191725,1747329069756,-400.0,0.00012094,2]
[361191726,1747329069766,-400.0,0.00012094,2]
[361191727,1747329069776,-200.0,0.00012094,2]
[361191728,1747329069786,-200.0,0.00012094,2]
[361191729,1747329069795,-200.0,0.00012094,2]
[361191730,1747329069805,-179.34,0.00012094,2]
[361191731,1747329069815,-300.0,0.00012094,2]
[361191732,1747329069825,-158.74,0.00012094,2]
[361191733,1747329069835,-320.98,0.00012094,2]
[361191734,1747329069845,-200.0,0.00012094,2]
[361191735,1747329069855,-200.0,0.00012094,2]
[361191736,1747329069865,-200.0,0.00012094,2]
[361191737,1747329069875,-477.08,0.00012094,2]
[361191738,1747329069884,-200.0,0.00012094,2]
[361191739,1747329069894,-200.0,0.00012094,2]
[361191740,1747329069903,-400.0,0.00012094,2]
[361191741,1747329069913,-400.0,0.00012094,2]
[361191742,1747329069923,-300.0,0.00012094,2]
[361191743,1747329069933,-362.62312107,0.00012094,2]
[361191744,1747329069944,-400.0,0.00012094,2]
[361191745,1747329069956,-400.0,0.00012094,2]
[361191746,1747329069969,-300.0,0.00012094,2]
[361191747,1747329069981,-400.0,0.00012094,2]
[361191748,1747329069992,-400.0,0.00012094,2]
[361191749,1747329070002,-400.0,0.00012094,2]
[361191750,1747329070012,-400.0,0.00012094,2]
[361191751,1747329070022,-300.0,0.00012094,2]
[361191752,1747329070033,-400.0,0.00012094,2]
[361191753,1747329070043,-400.0,0.00012094,2]
[361191754,1747329070054,-400.0,0.00012094,2]
[361191755,1747329070064,-400.0,0.00012094,2]
[361191756,1747329070075,-400.0,0.00012094,2]
[361191757,1747329070085,-400.0,0.00012094,2]
[361191758,1747329070095,-201.89762231,0.00012094,2]
[361191759,1747329070104,-229.29312784,0.00012094,2]
[361191760,1747329070115,-400.0,0.00012094,2]
[361191761,1747329070125,-400.0,0.00012094,2]
[361191762,1747329070135,-400.0,0.00012094,2]
[361191763,1747329070145,-312.30320249,0.00012094,2]
[361191764,1747329070366,-87.69679751,0.00012094,2]
[361191765,1747329070376,-400.0,0.00012094,2]
[361191766,1747329070386,-400.0,0.00012094,2]
[361191767,1747329070396,-400.0,0.00012094,2]
[361191768,1747329070409,-400.0,0.00012094,2]
[361191769,1747329070419,-275.05913055,0.00012094,2]
[361191770,1747329194978,167.93793002,7.5e-07,2]
[361191772,1747329332283,150.0,0.00010663,7]
[361191775,1747329811242,168.96,8.036e-05,2]
[361191776,1747329891222,-450.0,0.0001,2]
[361191777,1747329891245,-250.0,0.00010022,2]
[361191778,1747329891267,-168.96,0.00010045,2]
[361191779,1747329891288,-332.2,0.00010072,2]
[361191780,1747329891310,-1668.174914,0.00010238,2]
[361191781,1747329891331,-1982.53,0.0001029,2]
[361191782,1747329891355,-250.0,0.00010343,2]
[361191783,1747329891379,-615.11,0.00010434,2]
[361191784,1747329891400,-165.89,0.00010448,2]
[361191785,1747329891422,-200.0,0.00010482,2]
[361191786,1747329891446,-153.46,0.00010482,2]
[361191787,1747329891467,-300.0,0.00010661,2]
[361191788,1747329891489,-1200.0,0.00010662,2]
[361191789,1747329891511,-300.0,0.00010662,2]
[361191790,1747329891533,-1963.675086,0.00010663,2]
[361191791,1747329892960,-10000.0,0.00010663,2]
[361191792,1747329894083,-10000.0,0.00010663,2]
[361191793,1747329895048,-1936.324914,0.00010663,2]
[361191794,1747329895071,-189.6,0.0001079,2]
[361191795,1747329895093,-7874.075086,0.0001089,2]
[361191796,1747329895966,-2368.59939045,0.0001089,2]
[361191797,1747329895988,-1000.0,0.00010899,2]
[361191798,1747329896012,-150.0,0.00010899,2]
[361191799,1747329896042,-6481.40060955,0.000109,2]
[361191800,1747329897348,-10000.0,0.000109,2]
[361191801,1747329898370,-10000.0,0.000109,2]
[361191802,1747329936631,28654.01701986,9e-05,2]
[361191803,1747329955142,5377.13452429,6.94e-05,2]
[361191804,1747329967326,785.39436636,8e-05,2]
[361191805,1747329967904,2313.619733,7.945e-05,2]
[361191807,1747330028831,300.0,0.000119,4]
[361191808,1747330073396,1583.29,8.293e-05,2]
[361191809,1747330107187,408.89,0.00021945,30]
[361191960,1747330169091,-393.55,0.00010142,2]
[361191962,1747330169113,-1000.0,0.00010211,2]
[361191964,1747330169133,-322.0,0.00010211,2]
[361191966,1747330169154,-1144.11,0.0001025,2]
[361191968,1747330169174,-163.59,0.0001028,2]
[361191970,1747330169194,-250.0,0.0001033,2]
[361191972,1747330169214,-246.47,0.00010381,2]
[361191974,1747330169234,-1394.763126,0.00010557,2]
[361192057,1747330231756,-565.63,0.00010327,2]
[361192059,1747330231767,-188.526874,0.00010557,2]
[361192060,1747330231776,-200.0,0.00010793,2]
[361192061,1747330231786,-546.11541917,0.00010848,2]
[361192062,1747330231798,-1773.98041829,0.000109,2]
[361192063,1747330232013,-237.31862656,0.000109,2]
[361192064,1747330232023,-1200.0,0.00010952,2]
[361192065,1747330232033,-280.0,0.00010952,2]
[361192066,1747330232043,-5493.68137344,0.00010953,2]
[361192067,1747330232175,-921.73862656,0.00010953,2]
[361192068,1747330232184,-200.0,0.00010967,2]
[361192069,1747330232194,-162.29,0.0001099,2]
[361192070,1747330232203,-162.29,0.0001099,2]
[361192071,1747330232214,-162.29,0.0001099,2]
[361192072,1747330232224,-162.29,0.0001099,2]
[361192073,1747330232233,-162.29,0.0001099,2]
[361192074,1747330232242,-162.29,0.0001099,2]
[361192075,1747330232252,-162.29,0.0001099,2]
[361192076,1747330232261,-888.38137594,0.00010995,2]
[361192077,1747330232272,-1285.90345045,0.00010995,2]
[361192078,1747330232283,-562.76417773,0.00010995,2]
[361192079,1747330232370,-864.62897041,0.00010995,2]
[361192080,1747330232380,-150.0,0.00010995,2]
[361192081,1747330232390,-400.0,0.00010996,2]
[361192082,1747330232400,-400.0,0.00010996,2]
[361192084,1747330232409,-400.0,0.00010996,2]
[361192086,1747330232418,-400.0,0.00010996,2]
[361192088,1747330232427,-400.0,0.00010996,2]
[361192090,1747330232436,-400.0,0.00010996,2]
[361192092,1747330232445,-400.0,0.00010996,2]
[361192094,1747330232455,-400.0,0.00010996,2]
[361192096,1747330232468,-302.91684778,0.00010996,2]
[361192098,1747330232477,-400.0,0.00010996,2]
[361192100,1747330232486,-318.8240551,0.00010996,2]
[361192102,1747330232495,-400.0,0.00010996,2]
[361192104,1747330232505,-483.16,0.00010996,2]
[361192106,1747330232514,-400.0,0.00010996,2]
[361192108,1747330232524,-400.0,0.00010996,2]
[361192110,1747330232534,-400.0,0.00010996,2]
[361192111,1747330232543,-400.0,0.00010996,2]
[361192113,1747330232553,-400.0,0.00010996,2]
[361192115,1747330232562,-400.0,0.00010996,2]
[361192117,1747330232572,-400.0,0.00010996,2]
[361192120,1747330232581,-400.0,0.00010996,2]
[361192121,1747330232591,-400.0,0.00010996,2]
[361192123,1747330232600,-400.0,0.00010996,2]
[361192125,1747330232609,-400.0,0.00010996,2]
[361192127,1747330232618,-400.0,0.00010996,2]
[361192129,1747330232627,-400.0,0.00010996,2]
[361192131,1747330232636,-400.0,0.00010996,2]
[361192133,1747330232645,-400.0,0.00010996,2]
[361192135,1747330232654,-400.0,0.00010996,2]
[361192137,1747330232663,-400.0,0.00010996,2]
[361192139,1747330232673,-400.0,0.00010996,2]
[361192141,1747330232681,-400.0,0.00010996,2]